[Event "25th Abu Dhabi Open 2018"]
[Site "Abu Dhabi"]
[Date "2018.08.12"]
[Round "6"]
[White "Gandhi, Anish"]
[Black "Loay, Sameer"]
[Result "0-1"]
[ECO "B06"]
[WhiteElo "2016"]
[BlackElo "2043"]
[Annotator "NA"]
[PlyCount "108"]
[EventDate "2018.08.05"]
[EventType "swiss"]
[EventCountry "UAE"]
[SourceTitle "playchess.com"]
[Source "ChessBase"]
[SourceQuality "1"]
[TimeControl "5400+30"]

1. e4 d6 2. d4 g6 3. Nc3 Bg7 4. Bg5 c5 5. d5 {B06: Modern Defence} (5. dxc5 Qa5 6. Qd2 Qxc5 7. Nd5 Be6 8. Be3 Qc8 9. Bd4 f6 10. Nf3 Nc6 11. Be3 Bf7 12. Be2 h5 13. O-O-O Bh6 14. Kb1 Kf8 {1-0 (31) Nisipeanu,L (2683)-Kalinitschew,S (2426) Apolda 2017}) 5... Bxc3+ 6. bxc3 Nf6 $146 ({Predecessor:} 6... Qa5 7. Nf3 Nd7 8. Bd3 f6 9. Bd2 Ne5 10. Be2 Nxf3+ 11. gxf3 f5 12. Rb1 a6 {1-0 (35) Jurlina,R (2130)-Geiger,W Germany 1998}) 7. Qd3 Nbd7 8. Nf3 Qa5 9. Bd2 Qa4 10. c4 b5 11. Qc3 O-O 12. Bh6 Re8 13. Be2 Qb4 14. Qxb4 cxb4 15. Nd2 bxc4 16. Bxc4 Nc5 17. f3 Bd7 18. O-O Rec8 19. h3 Ba4 20. Rac1 Rab8 21. c3 Nfd7 22. cxb4 Rxb4 23. Rb1 Rcb8 24. Rxb4 Rxb4 25. Rb1 Rxb1+ 26. Nxb1 Nb6 27. Be2 f5 28. Nc3 fxe4 29. fxe4 Bc2 30. Bf3 Nc4 31. Kf2 Kf7 32. Bg5 a5 33. Be2 Ne5 34. Ke3 Na4 35. Nxa4 Bxa4 36. Kd4 Bc2 37. a3 a4 38. Bb5 Kf8 39. Bf4 Nf7 40. Bd3 Bd1 41. Kc3 Kg7 42. Kb4 Kf6 43. Bb5 Bc2 44. Bxa4 Bxe4 45. Bb3 Bxg2 46. h4 $1 Ne5 47. Bg5+ Kf7 48. a4 Bf1 49. a5 Ke8 $11 50. Ba4+ Kd8 51. Bb5 Bxb5 52. Kxb5 Nf3 53. Kb6 Nxg5 54. hxg5 Kc8 0-1

[Event "25th Abu Dhabi Open 2018"]
[Site "Abu Dhabi"]
[Date "2018.08.12"]
[Round "6"]
[White "Al Saleh, Mohammad"]
[Black "Soham, Datar"]
[Result "1/2-1/2"]
[ECO "B90"]
[WhiteElo "2012"]
[BlackElo "2030"]
[Annotator "NA"]
[PlyCount "102"]
[EventDate "2018.08.05"]
[EventType "swiss"]
[EventCountry "UAE"]
[SourceTitle "playchess.com"]
[Source "ChessBase"]
[SourceQuality "1"]
[TimeControl "5400+30"]

1. e4 {[%emt 0:01:40]} c5 {[%emt 0:00:00]} 2. Nf3 {[%emt 0:00:05]} d6 {[%emt 0:00:00]} 3. d4 {[%emt 0:00:07]} cxd4 4. Nxd4 {[%emt 0:00:06]} Nf6 {[%emt 0:00:08]} 5. Nc3 {[%emt 0:00:07]} a6 {[%emt 0:00:03]} 6. f3 {[%emt 0:00:46]} e5 {[%emt 0:00:08]} 7. Nb3 {[%emt 0:00:09]} Be6 {[%emt 0:00:08]} 8. Be3 {[%emt 0:00:18]} Nbd7 {[%emt 0:00:09]} 9. Qd2 {[%emt 0:01:36]} b5 {[%emt 0:00:35]} 10. O-O-O {[%emt 0:06:47]} Rc8 {[%emt 0:00:29] B90: Sizilianisch (Najdorf-Variante, Abweichungen)} (10... h5 11. Nd5 Rc8 12. Qa5 Nxd5 13. exd5 Bf5 14. Bd3 Qxa5 15. Nxa5 g6 16. Kb1 Bh6 17. Bf2 Nf6 18. Rhe1 Bxd3 19. Rxd3 {½-½ (31) Brkic,A (2590)-Jakovenko,D (2746) Batumi 2018}) 11. Kb1 {[%emt 0:10:47]} h5 {[%emt 0:04:19]} 12. Nd5 {[%emt 0:07:33]} Bxd5 {[%emt 0:00:52]} 13. exd5 {[%emt 0:00:05]} Nb6 {[%emt 0:01:27]} 14. Bxb6 {[%emt 0:01:49]} Qxb6 {[%emt 0:00:14]} 15. Na5 {[%emt 0:08:29]} Nxd5 {[%emt 0:07:12]} 16. Qxd5 {[%emt 0:00:23]} Qxa5 {[%emt 0:00:06]} 17. Bd3 {[%emt 0:01:00]} Qc7 {[%emt 0:15:37]} 18. Bf5 $146 {[%emt 0:04:34]} ({Vorgänger:} 18. Rhe1 Be7 {0-1 (55) Costello,A (1897)-Asaria,D (2023) Irvine 2016}) 18... Rd8 {[%emt 0:00:03]} 19. Rhe1 {[%emt 0:01:14]} Be7 {[%emt 0:02:40]} 20. c3 {[%emt 0:03:20]} g6 {[%emt 0:05:03]} 21. Bc2 {[%emt 0:01:25]} Kf8 {[%emt 0:01:48]} 22. Bb3 {[%emt 0:01:22]} Bf6 {[%emt 0:03:10]} 23. Re4 {[%emt 0:03:27]} Kg7 {[%emt 0:01:56]} 24. f4 {[%emt 0:02:35]} Rhf8 {[%emt 0:02:03]} 25. Rf1 {[%emt 0:02:17]} Rd7 {[%emt 0:01:17]} 26. Rd1 {[%emt 0:18:47]} Rfd8 {[%emt 0:07:33]} 27. Rd3 {[%emt 0:04:45]} Qa7 {[%emt 0:05:21]} 28. Rd1 {[%emt 0:06:43]} Qf2 {[%emt 0:05:59]} 29. fxe5 {[%emt 0:04:44]} Bxe5 {[%emt 0:08:27]} 30. Ree1 {[%emt 0:01:15]} Qh4 {[%emt 0:07:43]} 31. h3 {[%emt 0:01:09]} Qe7 {[%emt 0:03:32]} 32. a3 {[%emt 0:00:42]} a5 {[%emt 0:01:17]} 33. g4 {[%emt 0:01:25]} h4 {[%emt 0:00:10]} 34. Re4 {[%emt 0:00:50]} f6 {[%emt 0:02:59]} 35. Bc2 {[%emt 0:00:55]} Rb8 {[%emt 0:01:39]} 36. g5 {[%emt 0:00:53]} Rc7 {[%emt 0:03:56]} 37. gxf6+ {[%emt 0:00:33]} Qxf6 {[%emt 0:00:02]} 38. Rg4 {[%emt 0:00:17]} b4 {[%emt 0:06:56]} 39. axb4 {[%emt 0:01:38]} axb4 {[%emt 0:00:01]} 40. Rxg6+ {[%emt 0:01:01]} Qxg6 {[%emt 0:00:05]} 41. Bxg6 {[%emt 0:00:07]} bxc3 {[%emt 0:01:14] [#]} 42. b3 $1 {[%emt 0:01:00]} ({Worse is} 42. Rg1 Rxb2+ 43. Kc1 Bf4+ 44. Kd1 Rd2+ 45. Qxd2 Bxd2 $17) 42... Kxg6 {[%emt 0:01:46]} 43. Qe6+ {[%emt 0:00:33]} Kh7 {[%emt 0:00:50]} 44. Kc2 {[%emt 0:00:48]} Rg7 $14 {[%emt 0:00:58]} (44... Rf8 $5 {[%cal Rf8f2]} 45. Qg4 Rf2+ 46. Kd3 Bg3 $11) 45. Qf5+ {[%emt 0:00:32]} Kg8 {[%emt 0:01:28]} 46. Qe6+ {[%emt 0:00:33]} Kh7 {[%emt 0:00:02]} 47. Qf5+ {[%emt 0:00:18]} Kg8 {[%emt 0:01:04]} 48. Qe6+ {[%emt 0:00:05]} Kh8 49. Qh6+ Rh7 50. Qe6 Rf8 51. Rxd6 Rf2+ {[%emt 0:00:00]} 1/2-1/2

[Event "25th Abu Dhabi Open 2018"]
[Site "Abu Dhabi"]
[Date "2018.08.12"]
[Round "6"]
[White "Ahmad, Al Romaithi"]
[Black "Laabi Chian, Majid"]
[Result "0-1"]
[ECO "B09"]
[WhiteElo "1931"]
[BlackElo "2013"]
[Annotator "NA"]
[PlyCount "90"]
[EventDate "2018.08.05"]
[EventType "swiss"]
[EventCountry "UAE"]
[SourceTitle "playchess.com"]
[Source "ChessBase"]
[SourceQuality "1"]
[TimeControl "5400+30"]

1. e4 {[%emt 0:00:58]} d6 {[%emt 0:03:35]} 2. d4 {[%emt 0:00:02]} Nf6 {[%emt 0:00:15]} 3. Nc3 {[%emt 0:00:05]} g6 {[%emt 0:00:10]} 4. f4 {[%emt 0:00:02]} c6 {[%emt 0:00:40]} 5. Nf3 {[%emt 0:00:41]} Bg7 {[%emt 0:00:31]} 6. Be2 {[%emt 0:01:07]} O-O {[%emt 0:00:19]} 7. O-O {[%emt 0:01:26]} b5 {[%emt 0:00:23]} 8. a3 {[%emt 0:03:09]} a5 {[%emt 0:00:56]} 9. e5 {[%emt 0:08:52]} Nfd7 {[%emt 0:05:24]} 10. Qe1 {[%emt 0:07:41]} Nb6 {[%emt 0:10:32]} 11. Ne4 {[%emt 0:15:43]} f6 {[%emt 0:02:35]} 12. b3 {[%emt 0:08:08]} a4 {[%emt 0:17:49]} 13. exd6 {[%emt 0:08:55]} exd6 {[%emt 0:00:04]} 14. Qb4 {[%emt 0:01:53]} Re8 {[%emt 0:05:07]} 15. Bd3 {[%emt 0:01:22]} Bf8 {[%emt 0:00:41]} 16. Qe1 {[%emt 0:04:46]} Bg7 {[%emt 0:03:35]} 17. Qg3 {[%emt 0:01:17]} Bf5 {[%emt 0:02:26]} 18. Nf2 {[%emt 0:02:18]} Bxd3 {[%emt 0:00:25]} 19. Nxd3 {[%emt 0:00:14]} f5 {[%emt 0:01:36]} 20. Bb2 {[%emt 0:02:53]} N8d7 {[%emt 0:00:55]} 21. Rfe1 {[%emt 0:02:06]} Nf6 {[%emt 0:01:16]} 22. Nd2 {[%emt 0:03:39]} Qd7 {[%emt 0:01:53]} 23. Qf3 {[%emt 0:00:56]} axb3 {[%emt 0:00:46]} 24. cxb3 {[%emt 0:00:55]} Nbd5 {[%emt 0:02:51]} 25. h3 {[%emt 0:00:23]} h5 {[%emt 0:01:23]} 26. g3 {[%emt 0:03:42]} Qa7 {[%emt 0:04:38]} 27. Kh2 {[%emt 0:01:21]} Qf7 {[%emt 0:04:13]} 28. Rac1 {[%emt 0:00:56]} Qd7 {[%emt 0:00:21]} 29. b4 {[%emt 0:01:32]} Kf7 {[%emt 0:02:23]} 30. Nf2 {[%emt 0:02:20]} Bh6 {[%emt 0:00:40]} 31. h4 {[%emt 0:01:32]} Rxe1 {[%emt 0:00:39]} 32. Rxe1 {[%emt 0:00:05]} Re8 {[%emt 0:00:06]} 33. Qd1 {[%emt 0:01:10]} Re6 {[%emt 0:01:28]} 34. Nf3 {[%emt 0:01:31]} Qe8 {[%emt 0:01:44]} 35. Rxe6 {[%emt 0:00:54]} Qxe6 {[%emt 0:00:08]} 36. Qe1 {[%emt 0:00:47]} Ne3 {[%emt 0:00:28]} 37. Ne5+ {[%emt 0:02:22]} dxe5 {[%emt 0:00:44]} 38. Qxe3 {[%emt 0:00:12]} exf4 {[%emt 0:00:19]} 39. Qxe6+ {[%emt 0:00:44]} Kxe6 {[%emt 0:00:07]} 40. Nd3 {[%emt 0:02:13]} Ng4+ {[%emt 0:03:10]} 41. Kg2 {[%emt 0:00:39]} fxg3 {[%emt 0:00:34]} 42. Kxg3 {[%emt 0:00:14]} Kd5 {[%emt 0:00:24]} 43. Ne5 {[%emt 0:03:32]} Nxe5 {[%emt 0:01:20]} 44. dxe5 {[%emt 0:00:48]} Bd2 {[%emt 0:00:10]} 45. Kf2 {[%emt 0:01:38]} Bf4 {[%emt 0:00:56]} 0-1

[Event "25th Abu Dhabi Open 2018"]
[Site "Abu Dhabi"]
[Date "2018.08.12"]
[Round "6"]
[White "Rafee, Mohd Hayel"]
[Black "Molina, Antonio"]
[Result "1/2-1/2"]
[ECO "B97"]
[WhiteElo "1878"]
[BlackElo "1992"]
[Annotator "NA"]
[PlyCount "153"]
[EventDate "2018.08.05"]
[EventType "swiss"]
[EventCountry "UAE"]
[SourceTitle "playchess.com"]
[Source "ChessBase"]
[SourceQuality "1"]
[TimeControl "5400+30"]

1. e4 c5 2. Nf3 d6 3. d4 cxd4 4. Nxd4 Nf6 5. Nc3 a6 6. Bg5 e6 7. f4 Qb6 8. Bxf6 gxf6 9. Qd2 Qxb2 10. Rb1 Qa3 11. f5 Nc6 12. Nxc6 bxc6 13. fxe6 Bxe6 14. Be2 Bh6 15. Qxh6 Qxc3+ 16. Kf2 Qd4+ 17. Qe3 Qxe3+ 18. Kxe3 Bxa2 19. Rb6 Kd7 20. Rb7+ Kc8 21. Rb2 Be6 22. Rhb1 Rd8 23. Rb6 Kc7 24. Bxa6 Rdb8 25. Rxb8 Rxb8 26. Rxb8 Kxb8 27. Kf4 Kc7 28. Be2 Kb6 29. h4 Ka5 30. Bg4 Kb4 31. Bf5 h6 32. Kg4 Kc3 33. Kh5 Bxf5 34. exf5 Kxc2 35. Kxh6 d5 36. Kg7 d4 37. h5 d3 38. h6 d2 39. h7 d1=Q 40. h8=Q Qg4+ 41. Kxf7 Qxf5 42. Qa8 c5 43. Qa4+ Kc3 44. g4 Qg5 45. Qa1+ Kd3 46. Qf1+ Ke4 47. Qc4+ Kf3 48. Qf1+ Kxg4 49. Qg1+ Kf3 50. Qf1+ Ke3 51. Qc1+ Kd4 52. Qb2+ Kc4 53. Qe2+ Kd5 54. Qd3+ Ke5 55. Qc3+ Kd6 56. Qa3 Qe5 57. Qa6+ Kd5 58. Qd3+ Qd4 59. Qb5 f5 60. Qd7+ Ke4 61. Qe6+ Qe5 62. Qc4+ Ke3 63. Qc1+ Kd3 64. Qd1+ Ke4 65. Qe2+ Kd5 66. Qd3+ Kc6 67. Qa6+ Kd7 68. Qb7+ Qc7 69. Qd5+ Kc8+ 70. Ke6 Kb8 71. Kxf5 c4 72. Qb5+ Ka7 73. Qa4+ Kb6 74. Qb4+ Ka6 75. Ke4 c3 76. Kd3 c2 77. Qa4+ 1/2-1/2

[Event "25th Abu Dhabi Open 2018"]
[Site "Abu Dhabi"]
[Date "2018.08.12"]
[Round "6"]
[White "Nadeem, Aziz"]
[Black "Masrahi, Abdulrahman A"]
[Result "1/2-1/2"]
[ECO "D02"]
[WhiteElo "1789"]
[BlackElo "1976"]
[Annotator "NA"]
[PlyCount "90"]
[EventDate "2018.08.05"]
[EventType "swiss"]
[EventCountry "UAE"]
[SourceTitle "playchess.com"]
[Source "ChessBase"]
[SourceQuality "1"]
[TimeControl "5400+30"]

1. d4 d5 2. Nf3 Nf6 3. g3 Bf5 4. Bg2 e6 5. O-O h6 6. b3 Bd6 7. Bb2 O-O 8. Nbd2 c5 9. e3 Nc6 10. a3 Qe7 11. c4 cxd4 12. exd4 a5 13. Re1 Qd8 14. Ne5 Qb8 15. Rc1 Rc8 16. h3 Qa7 17. Nxc6 Rxc6 18. c5 Be7 19. b4 axb4 20. axb4 Ra6 21. b5 Ra2 22. b6 Qb8 23. Qb3 R2a4 24. Ra1 Qe8 25. Bf1 Rxa1 26. Rxa1 Rxa1 27. Bxa1 Qa8 28. Bb2 e5 29. Nf3 exd4 30. Bxd4 Qc8 31. Bxf6 gxf6 32. Qxd5 Bxc5 33. Nd4 Bg6 34. Nb5 Bxb6 35. Nd6 Qe6 36. Qxe6 fxe6 37. Bg2 Kf8 38. Bxb7 Bc7 39. Ne4 Ke7 40. Nd2 e5 41. g4 Bd3 42. Be4 Bb5 43. Kg2 Be8 44. Nf1 h5 45. Ng3 hxg4 1/2-1/2

[Event "25th Abu Dhabi Open 2018"]
[Site "Abu Dhabi"]
[Date "2018.08.13"]
[Round "7"]
[White "Ammar, Sedrani"]
[Black "Ali, Abdulaziz"]
[Result "1-0"]
[ECO "A45"]
[WhiteElo "2109"]
[BlackElo "1914"]
[Annotator "NA"]
[PlyCount "31"]
[EventDate "2018.08.05"]
[EventType "swiss"]
[EventCountry "UAE"]
[SourceTitle "playchess.com"]
[Source "ChessBase"]
[SourceQuality "1"]
[TimeControl "5400+30"]

1. d4 {[%emt 0:00:00]} Nf6 {[%emt 0:04:10]} 2. Bg5 {[%emt 0:00:00]} c5 {[%emt 0:00:34]} 3. e3 {[%emt 0:03:20]} cxd4 {[%emt 0:12:46]} 4. exd4 {[%emt 0:00:10]} e6 {[%emt 0:00:17]} 5. c3 {[%emt 0:00:27]} b6 {[%emt 0:00:14]} 6. Nd2 {[%emt 0:00:36]} Bb7 {[%emt 0:00:06]} 7. Ngf3 {[%emt 0:00:22]} Be7 {[%emt 0:00:10]} 8. Bd3 {[%emt 0:00:36]} O-O {[%emt 0:01:17]} 9. Bxf6 {[%emt 0:00:42]} Bxf6 {[%emt 0:00:06]} 10. h4 {[%emt 0:00:23]} d6 {[%emt 0:01:23]} 11. Qc2 {[%emt 0:01:16]} g6 {[%emt 0:00:12]} 12. h5 {[%emt 0:00:21]} Re8 {[%emt 0:05:03]} 13. hxg6 {[%emt 0:00:36]} hxg6 {[%emt 0:00:11]} 14. Bxg6 {[%emt 0:00:48]} fxg6 {[%emt 0:02:23]} 15. Qxg6+ {[%emt 0:00:12]} Bg7 {[%emt 0:01:15]} 16. Ng5 {[%emt 0:00:06]} 1-0

[Event "25th Abu Dhabi Open 2018"]
[Site "Abu Dhabi"]
[Date "2018.08.13"]
[Round "7"]
[White "Hallaeva, Bahar"]
[Black "Al Saleh, Mohammad"]
[Result "1/2-1/2"]
[ECO "B24"]
[WhiteElo "2098"]
[BlackElo "2012"]
[Annotator "NA RC"]
[PlyCount "110"]
[EventDate "2018.08.05"]
[EventType "swiss"]
[EventCountry "UAE"]
[SourceTitle "playchess.com"]
[Source "ChessBase"]
[SourceQuality "1"]
[TimeControl "5400+30"]

1. e4 c5 2. Nc3 Nc6 3. Bb5 g6 4. Bxc6 dxc6 5. d3 Bg7 6. Be3 b6 7. Qd2 e5 {B23: Closed Sicilian: Lines without g3} 8. Nge2 Nf6 9. h3 O-O 10. Bh6 Ne8 11. O-O-O a5 $146 ({Predecessor:} 11... Bxh6 12. Qxh6 Nc7 13. g3 a5 14. f4 a4 15. f5 {1-0 (59) Nakar,E (2268)-Van Assendelft,F (2376) Hoogeveen 2011}) 12. Bxg7 Nxg7 13. f4 Qe7 14. Rdf1 a4 15. g4 exf4 16. Qxf4 f6 17. h4 Ne6 18. Qh6 b5 19. Kb1 b4 20. Nd1 b3 21. Qd2 c4 22. dxc4 Nc5 23. Ng3 Bxg4 24. Ne3 Be6 25. h5 g5 26. h6 a3 27. cxb3 axb2 28. Qxb2 {[#]} Qa7 $1 29. Rh2 {[#]} Nxb3 $1 30. Rxf6 {[#]} ({Avoid the trap} 30. Qxb3 $2 Rfb8 $19) 30... Nd4 (30... Nd2+ $1 $17 {[%mdl 512]} 31. Kc1 (31. Qxd2 Rxf6) 31... Rfb8) 31. Rxf8+ Rxf8 32. Qc3 (32. Kc1 $1 $11 {keeps the balance.}) 32... Qb8+ (32... Rf3 $17 33. c5 Qa4) 33. Rb2 Qe5 34. Nc2 c5 35. Rb7 Rf3 (35... Rf7 $5 {[%cal Rf7b7]} 36. Rb5 Rd7 $11) 36. Qa5 $1 Kh8 $2 (36... Nc6 $11 37. Qa4 Nd8 38. Rg7+ Kf8) 37. Qa8+ (37. Qd8+ $142 Bg8 38. Rg7 Qxg7 39. hxg7+ Kxg7 40. Qxg5+ Kf7 41. Nxd4 cxd4 42. Qh5+ Ke6 43. Qxf3) 37... Bg8 38. Rb8 $2 Qe6 39. Qa7 $2 ({Only move:} 39. Nxd4 $18 cxd4 40. Qd5 Qxd5 41. exd5) 39... Qe5 {[#]} (39... Qxh6 $16 {was necessary.} 40. Nxd4 Rxg3 41. Rxg8+ Kxg8 42. Qb8+ Kf7 43. Qb7+ (43. Qxg3 cxd4 44. Qc7+ Kg6 $11) 43... Kg6 44. Qc6+ Kh5 45. Qxh6+ Kxh6 46. Nf5+ Kg6) 40. Qa8 (40. Re8 $1 $18 {[%cal Re8e5][%mdl 512]} Nc6 (40... Qxe8 41. Qg7#) 41. Rxe5 Nxa7 42. Nf5 (42. Rxg5 Nc8 $18)) 40... Qe6 41. Qa7 Qf6 {[#]} 42. Nxd4 $2 (42. Nh5 $1 $18 Qxh6 43. Qxc5) 42... Qxd4 {[#]} 43. Qg7+ $1 Qxg7 44. hxg7+ Kxg7 45. Nf5+ Rxf5 46. exf5 Bxc4 47. Rb7+ Kf6 48. Rxh7 g4 49. Rh6+ Kxf5 50. Rh5+ Kf4 51. Rxc5 Bxa2+ 52. Kxa2 g3 53. Rc4+ Kf3 $11 54. Rc3+ Kf2 55. Rxg3 Kxg3 1/2-1/2

[Event "25th Abu Dhabi Open 2018"]
[Site "Abu Dhabi"]
[Date "2018.08.13"]
[Round "7"]
[White "Loay, Sameer"]
[Black "Ovezdurdiyeva, Jemal"]
[Result "1/2-1/2"]
[ECO "A05"]
[WhiteElo "2043"]
[BlackElo "2041"]
[Annotator "NA RC"]
[PlyCount "124"]
[EventDate "2018.08.05"]
[EventType "swiss"]
[EventCountry "UAE"]
[SourceTitle "playchess.com"]
[Source "ChessBase"]
[SourceQuality "1"]
[TimeControl "5400+30"]

1. Nf3 {[%emt 0:00:52]} Nf6 {[%emt 0:00:00]} 2. g3 {[%emt 0:00:06]} g6 {[%emt 0:00:00]} 3. Bg2 {[%emt 0:00:04]} Bg7 {[%emt 0:00:00]} 4. O-O {[%emt 0:00:06]} O-O {[%emt 0:00:00]} 5. d3 {[%emt 0:00:03]} d5 {[%emt 0:00:24]} 6. Nbd2 {[%emt 0:00:06]} c5 {[%emt 0:01:21]} 7. e4 {[%emt 0:00:06]} Nc6 {[%emt 0:00:32]} 8. Re1 {[%emt 0:00:52]} dxe4 {[%emt 0:04:23]} 9. dxe4 {[%emt 0:00:06]} e5 {[%emt 0:03:10]} 10. c3 {[%emt 0:07:01] A08: King's Indian Attack} h6 {[%emt 0:12:35]} 11. Qe2 {[%emt 0:00:48]} Be6 {[%emt 0:00:33]} 12. Nc4 {[%emt 0:00:30]} Qc7 {[%emt 0:01:18]} 13. a4 {[%emt 0:00:12]} a6 $146 {[%emt 0:00:44]} ({Predecessor:} 13... Rfd8 14. Nfd2 b6 15. h3 Rab8 16. Nf1 Qd7 17. Kh2 Qd3 18. Qxd3 Rxd3 {½-½ (32) Movsziszian,K (2502)-Oliva Castaneda,K (2499) Sabadell 2016}) 14. Nfd2 {[%emt 0:02:21]} b6 {[%emt 0:06:06]} 15. Ne3 {[%emt 0:11:10]} Rfd8 {[%emt 0:03:21]} 16. Ndc4 {[%emt 0:00:29]} Rab8 {[%emt 0:02:00]} 17. Nd5 {[%emt 0:04:14]} Nxd5 {[%emt 0:04:50]} 18. exd5 {[%emt 0:00:11]} Bxd5 {[%emt 0:00:03]} 19. Bxd5 {[%emt 0:00:10]} Rxd5 {[%emt 0:00:06]} 20. Ne3 {[%emt 0:00:05]} Rd7 {[%emt 0:06:38]} 21. Qxa6 {[%emt 0:00:08]} Na5 {[%emt 0:14:46]} 22. Nc4 {[%emt 0:09:13]} f5 {[%emt 0:09:17]} 23. Nxa5 {[%emt 0:00:26]} bxa5 {[%emt 0:00:15]} 24. Qxg6 {[%emt 0:00:12]} f4 {[%emt 0:00:59]} 25. Qe4 {[%emt 0:27:01]} Rf7 {[%emt 0:04:00]} 26. Bd2 {[%emt 0:01:37]} Rxb2 {[%emt 0:05:35]} 27. Rad1 {[%emt 0:00:23]} c4 {[%emt 0:08:09]} 28. Bc1 {[%emt 0:16:58]} Rb8 {[%emt 0:00:24]} 29. Rd5 {[%emt 0:00:34]} Rbf8 {[%emt 0:01:43]} 30. Ba3 {[%emt 0:01:01]} Re8 {[%emt 0:03:21]} (30... Rd8 $16 31. Bc5 Rfd7 32. Rxd7 Qxd7) 31. Bc5 {[%emt 0:06:01]} (31. gxf4 $18 {is more deadly.} Rxf4 {[#]} 32. Qxf4 $1 {[%mdl 512]} exf4 33. Rxe8+ Kh7 34. Re7) 31... Qc8 {[%emt 0:01:31]} 32. f3 {[%emt 0:04:30]} (32. Qxc4 $16 Qh3 33. Qf1 Qxf1+ 34. Kxf1) 32... fxg3 {[%emt 0:01:12]} 33. hxg3 {[%emt 0:00:08]} Qh3 {[%emt 0:00:05]} 34. Bf2 $1 {[%emt 0:00:05]} Ref8 {[%emt 0:01:04]} 35. Re3 {[%emt 0:00:08]} Qc8 {[%emt 0:03:19]} (35... Rf5 $16) 36. Rxa5 {[%emt 0:00:51]} Rf5 {[%emt 0:02:21]} 37. Kg2 {[%emt 0:02:22]} Rh5 $2 {[%emt 0:00:52]} (37... R5f7 38. Rb5 Kh8) 38. g4 {[%emt 0:00:10]} Rg5 {[%emt 0:00:42]} 39. Bh4 {[%emt 0:00:09]} Qd8 {[%emt 0:01:06]} 40. Qxc4+ {[%emt 0:04:01]} Kh8 {[%emt 0:00:35]} 41. Bxg5 {[%emt 0:00:34]} Qxa5 {[%emt 0:00:10]} 42. Be7 {[%emt 0:00:17]} Rf4 {[%emt 0:00:20]} 43. Re4 {[%emt 0:00:16]} Rxe4 {[%emt 0:00:36]} 44. fxe4 {[%emt 0:00:01]} ({Less strong is} 44. Qxe4 Qxc3 45. Bh4 Qa5 $18) 44... Qa7 {[%emt 0:00:11]} 45. Bc5 {[%emt 0:00:24]} Qd7 {[%emt 0:00:07]} 46. Kg3 {[%emt 0:00:41]} (46. a5 $142) 46... Qd1 {[%emt 0:00:12]} (46... Qd2 $16 47. Bf2 Qf4+ 48. Kg2 Qxg4+ 49. Bg3 Bf6) 47. Bf2 {[%emt 0:01:55]} Bf6 {[%emt 0:00:43]} 48. a5 {[%emt 0:02:49]} Qh1 {[%emt 0:00:10] [#]} (48... Bg5 {is a better defense.} 49. Qc8+ Kg7) 49. Qc8+ $1 {[%emt 0:00:12]} Kg7 {[%emt 0:00:05] [#]} 50. Qd7+ $1 {[%emt 0:00:04]} Kg8 $1 {[%emt 0:00:20]} 51. Qe8+ $2 {[%emt 0:00:28]} (51. Qd5+ $18 Kh8 {[#]} 52. g5 $1 {[%mdl 512]} hxg5 53. Qd3) 51... Kg7 {[%emt 0:00:08]} 52. Qd7+ {[%emt 0:02:03]} Kg8 {[%emt 0:00:07]} 53. Qe8+ $11 {[%emt 0:00:28]} Kg7 {[%emt 0:00:06]} 54. Qd7+ {[%emt 0:00:38]} Kg8 {[%emt 0:00:02]} 55. Qc8+ {[%emt 0:00:04]} Kg7 {[%emt 0:00:09]} 56. Qd7+ {[%emt 0:00:19]} Kg8 {[%emt 0:00:05]} 57. Qe8+ {[%emt 0:00:04]} Kg7 {[%emt 0:00:03] [#]} 58. g5 $1 $18 hxg5 (58... Bxg5 59. Qxe5+ Bf6 60. Qc7+ Kg6 61. Qf4) 59. Qd7+ Kg6 60. Qf5+ Kg7 61. Qg4 $2 {[%emt 0:02:56]} (61. a6) 61... Qa1 {[%emt 0:01:31]} 62. Qd7+ Kg6 1/2-1/2